Cogmind - Beta 15 @@@ ROGUE MODE // 2025.08.17 @ 17:10:14 Player: SnailSD Result: Destroyed by X2-I50(R) with Subdweller Machine Gun Performance ------------- Evolutions (0) 0 Regions Visited (3) 600 Robots Destroyed (21) 105 Value Destroyed (359) 359 Prototype IDs (0) 0 Alien Tech Used (0) 0 Bonus (0) 0 TOTAL SCORE: 1064 Bonus ------- None Cogmind --------- Core Integrity 0/250 Matter 295/300 Energy 125/125 System Corruption 0% Temperature Cool (0) Movement Treading (160) Location -10/Subcaves Parts ------- > --- POWER (1) -------- Light Ion Engine > --- PROPULSION (2) --- Light Treads > --- UTILITY (2) ------ Medium Storage Unit Transport Network Coupler > --- WEAPON (2) ------- Small Laser Light Assault Rifle > --- INVENTORY (10) --- Compact Wheel Heat Sink Small Storage Unit Large Matter Pod (61) Transport Network Coupler ECM Suite Splice Drone Bay Grenade Launcher Hammer Peak State ------------ > --- POWER ------------ Ion Engine > --- PROPULSION ------- Light Treads Light Treads > --- UTILITY ---------- Small Storage Unit Improved Terrain Scanner > --- WEAPON ----------- Assault Rifle Light Assault Rifle > --- INVENTORY -------- Light Ion Engine Aluminum Leg Aluminum Leg Wheel Wheel Compact Wheel Small Storage Unit Small Laser [Rating: 9] Favorites ----------- Power Light Ion Engine Engine Light Ion Engine Propulsion Light Treads Treads Light Treads Utility Transport Network Coupler Device Seismic Detector Storage Medium Storage Unit Processor Transport Network Coupler Weapon Assault Rifle Energy Gun Medium Laser Ballistic Gun Assault Rifle Build | -11 -10 -10 -10 ------- Run | Yrd Mat Min Sub Slots Evolved . | . . . . Power . | . . . . Propulsion . | . . . . Utility . | . . . . Weapon . | . . . . Parts Attached 16 | 8 5 3 . Power 3 | 1 1 1 . Engine 3 | 1 1 1 . Core . | . . . . Reactor . | . . . . Propulsion 3 | 2 1 . . Treads 3 | 2 1 . . Leg . | . . . . Wheel . | . . . . Hover . | . . . . Flight . | . . . . Utility 5 | 3 2 . . Device 2 | 2 . . . Storage 2 | 1 1 . . Processor 1 | . 1 . . Hackware . | . . . . Protection . | . . . . Artifact . | . . . . Weapon 5 | 2 1 2 . Energy Gun 2 | . 1 1 . Energy Cannon . | . . . . Ballistic Gun 3 | 2 . 1 . Ballistic Cannon . | . . . . Launcher . | . . . . Special Weapon . | . . . . Impact Weapon . | . . . . Slashing Weapon . | . . . . Piercing Weapon . | . . . . Special Melee Weapon . | . . . . Unidentified Prototypes . | . . . . Parts Lost 6 | . 2 4 . Power 2 | . 1 1 . Propulsion 2 | . 1 1 . Utility . | . . . . Weapon 2 | . . 2 . Highest Loss Streak 4 | . 1 4 . To Critical Strikes . | . . . . Average Backups 8 | 4 9 9 9 Power . | . . . . Propulsion 2 | 3 3 1 1 Utility 4 | . 4 4 6 Weapon 1 | . 1 2 2 Tool/Special . | . . . . Unused Backups 13 | . 4 1 8 Power . | . . . . Propulsion 5 | . 3 1 1 Utility 7 | . 1 . 6 Weapon 1 | . . . 1 Tool/Special . | . . . . Average Slot Usage (%) 94 | . 94 95 85 Engine 13 | . 13 14 14 Treads 23 | . 23 24 14 Storage 14 | . 14 14 14 Processor 13 | . 12 14 14 Energy Gun 13 | . 12 13 14 Ballistic Gun 14 | . 15 14 14 Peak Build Rating 9 | 9 8 8 7 Average Rating 7 | 5 7 7 7 On Entrance 5 | . 7 7 7 Naked Turns . | . . . . Heaviest Build 19 | 14 19 17 15 Greatest Support 40 | 40 40 40 20 Greatest Overweight (x) 2 | 2 . . . Average Overweight (x) . | . . . . Largest Inventory Capacity 10 | 8 10 10 10 Average Capacity 9 | 7 9 10 10 Most Carried 10 | 8 10 10 9 Average Carried 9 | 4 9 9 9 Final Capacity 10 | 8 10 10 10 Final Carried 9 | 8 9 9 9 Class Distribution -------------------- 88% | Mutant 11% | Scavenger-Mutant Dominant Class ---------------- Mutant | -10/Materials Mutant | -10/Mines Scavenger-Mutant | -10/Subcaves Resources | -11 -10 -10 -10 ----------- Run | Yrd Mat Min Sub Matter Collected 648 | 296 240 112 . Remotely . | . . . . Salvage Created 666 | 93 477 96 . Parts 38 | 6 22 10 . Haulers Intercepted 2 | . 2 . . Recyclers Shooed . | . . . . Parts Field Recycled . | . . . . Retrieved Matter . | . . . . Parts Self-Destructed 5 | . . . 5 Prevented . | . . . . Kills | -11 -10 -10 -10 ------- Run | Yrd Mat Min Sub Combat Hostiles Destroyed 15 | . 9 6 . Guns 15 | . 9 6 . Classes Destroyed 6 | 2 4 . . Tunneler 1 | 1 . . . Hauler 2 | . 2 . . Recycler 2 | 1 1 . . Operator 1 | . 1 . . Swarmer 9 | . 3 6 . Grunt 6 | . 6 . . Best Kill Streak 4 | 1 4 3 . Combat Bots Only 4 | . 4 3 . Max Kills in Single Turn 1 | 1 1 1 . Gunslinging . | . . . . Exploded . | . . . . Melee . | . . . . Uniques/NPCs Destroyed . | . . . . Combat | -11 -10 -10 -10 -------- Run | Yrd Mat Min Sub Hostile Shots Fired 117 | . 62 41 14 Missed 37 | . 21 11 5 Hits 80 | . 41 30 9 Projectile 80 | . 41 30 9 Damage Taken 894 | . 458 235 201 Core 271 | . 83 96 92 Absorbed by Shields . | . . . . Core Remaining (%) 100 | 100 . . . Volleys Fired 72 | 4 50 13 5 Largest 2 | 2 2 2 2 Hottest 70 | 40 70 70 60 Shots Fired 142 | 8 100 24 10 Gun 142 | 8 100 24 10 Cannon . | . . . . Launcher . | . . . . Special . | . . . . Kinetic 78 | 8 52 13 5 Thermal 64 | . 48 11 5 Explosive . | . . . . Electromagnetic . | . . . . Robot Hit Streak 9 | 2 9 5 7 Robot Miss Streak 3 | 1 3 1 1 Penetration Max . | . . . . Secondary Targets 4 | . 2 2 . Max Gunslinging Chain 1 | . 1 1 . Shots Hit Robots 88 | 5 59 16 8 Core Hits 33 | 4 21 6 2 Critical Kills . | . . . . Critical Parts Destroyed 1 | . . 1 . Critical Strikes 6 | . 5 1 . Burn 5 | . 5 . . Destroy 1 | . . 1 . Melee Attacks . | . . . . Impact . | . . . . Slashing . | . . . . Piercing . | . . . . Sneak Attacks . | . . . . Combat Hostiles . | . . . . Follow-up Attacks . | . . . . Damage Inflicted 1136 | 48 793 213 82 Guns 1132 | 48 791 211 82 Cannons . | . . . . Explosions . | . . . . Melee . | . . . . Ramming 4 | . 2 2 . Kinetic 533 | 48 363 97 25 Thermal 599 | . 428 114 57 Explosive . | . . . . Electromagnetic . | . . . . Impact . | . . . . Slashing . | . . . . Piercing . | . . . . Highest Corruption . | . . . . Average Corruption . | . . . . Corruption Purged . | . . . . Corruption Blocked . | . . . . Overload Shots . | . . . . Overflow Damage . | . . . . Projectiles . | . . . . Explosions . | . . . . Melee . | . . . . Knockbacks . | . . . . Impact . | . . . . Kinetic . | . . . . Secondary . | . . . . Self-Inflicted Damage . | . . . . Shots . | . . . . Rammed 2 | . 1 1 . Targets Rammed 2 | . 1 1 . Kicked . | . . . . Crushed . | . . . . Highest Temperature 192 | . 192 27 . Average Temperature 53 | . 60 12 . Received Heat Transfer 147 | . 147 . . Siege Activations . | . . . . Martial Activations . | . . . . Shielding Activations . | . . . . Robots Disrupted . | . . . . Combat Hostiles . | . . . . Robots Corrupted . | . . . . Combat Hostiles . | . . . . Parts Fried . | . . . . Impact Corruptions . | . . . . Robots Melted . | . . . . Combat Hostiles . | . . . . Parts Melted 3 | . 3 . . Heat Transferred 1977 | . 1591 261 125 Parts Sabotaged . | . . . . Parts Stolen . | . . . . Parts Stripped . | . . . . Power Chain Reactions . | . . . . Alert | -11 -10 -10 -10 ------- Run | Yrd Mat Min Sub Maximum Alert Level . | . . . . Low Security (%) 100 | 100 100 100 . Level 1 . | . . . . Level 2 . | . . . . Level 3 . | . . . . Level 4 . | . . . . Level 5 . | . . . . High Security . | . . . . Max Security . | . . . . Peak Influence 110 | 5 110 60 . Initial . | . . . . Average 29 | . 42 13 . Influence Increases 411 | 10 261 140 . Destroy 0b10 Robot/C 300 | . 180 120 . Destroy 0b10 Robot/NC 30 | 10 20 . . Destroy Leader 74 | . 54 20 . Successful Hack 6 | . 6 . . Destroy Structure 1 | . 1 . . Influence Decreases 411 | 10 261 140 . Time Decay 361 | 10 241 110 . Lost Part 50 | . 20 30 . Squads Dispatched 3 | . 3 . . Investigation 2 | . 2 . . Extermination . | . . . . Reinforcement 1 | . 1 . . Assault . | . . . . Garrison . | . . . . Intercept . | . . . . Searches Triggered . | . . . . Construction Impeded . | . . . . Haulers Reinforced . | . . . . Active Scanning Responses . | . . . . Cargo Convoy Interrupts . | . . . . Stealth | -11 -10 -10 -10 --------- Run | Yrd Mat Min Sub Distress Signals 1 | . 1 . . Communications Jammed . | . . . . Distress Signals . | . . . . Times Spotted 26 | . 18 6 2 Peak Tracking Total 5 | . 5 3 2 Tactical Retreats . | . . . . Traps | -11 -10 -10 -10 ------- Run | Yrd Mat Min Sub Traps Triggered 5 | . 5 . . Indirectly . | . . . . Trap Hack Attempts . | . . . . Triggered . | . . . . Disarmed . | . . . . Reprogrammed . | . . . . Reused . | . . . . Traps Extracted . | . . . . Installed . | . . . . Triggered . | . . . . Machines | -11 -10 -10 -10 ---------- Run | Yrd Mat Min Sub Machines Disabled . | . . . . Max in Single Turn . | . . . . Machines Repaired . | . . . . Machines Dismantled . | . . . . Machines Sabotaged . | . . . . Overloaded Fab Kills . | . . . . Hacking | -11 -10 -10 -10 --------- Run | Yrd Mat Min Sub Machines Accessed 4 | . 3 1 . Terminals 3 | . 3 . . Fabricators . | . . . . Repair Stations . | . . . . Recycling Units . | . . . . Scanalyzers . | . . . . Garrison Access . | . . . . Total Hacks 11 | . 10 1 . Successful 4 | . 3 1 . Failed 7 | . 7 . . Catastrophic 2 | . 2 . . Database Lockouts . | . . . . Manual 10 | . 10 . . Terminals 10 | . 10 . . Fabricators . | . . . . Repair Stations . | . . . . Recycling Units . | . . . . Scanalyzers . | . . . . Garrison Access . | . . . . Terminal Hacks 3 | . 2 1 . Robot Analysis 2 | . 2 . . Open Door 1 | . . 1 . Fabricator Hacks . | . . . . Repair Station Hacks . | . . . . Recycling Unit Hacks . | . . . . Scanalyzer . | . . . . Garrison Access Hacks . | . . . . Unauthorized Hacks 1 | . 1 . . Terminals 1 | . 1 . . Operators 1 | . 1 . . Fabricators . | . . . . Repair Stations . | . . . . Recycling Units . | . . . . Scanalyzers . | . . . . Garrison Access . | . . . . Data Cores Recovered . | . . . . Used . | . . . . Hacking Detections 3 | . 3 . . Full Trace Events 2 | . 2 . . Feedback Events . | . . . . Feedback Blocked . | . . . . Robot Schematics Acquired . | . . . . Robots Built . | . . . . Authchips . | . . . . Time . | . . . . Total Robot Build Rating . | . . . . Part Schematics Acquired . | . . . . Parts Built . | . . . . Authchips . | . . . . Time . | . . . . Total Part Build Rating . | . . . . Parts Repaired . | . . . . Time . | . . . . Parts Recycled . | . . . . Recycled Matter . | . . . . Retrieved Matter . | . . . . Retrieved Components . | . . . . Parts Scanalyzed . | . . . . Part Schematics Acquired . | . . . . Parts Damaged . | . . . . Bothacking | -11 -10 -10 -10 ------------ Run | Yrd Mat Min Sub Used RIF Installer . | . . . . Robots Hacked . | . . . . Non-combat . | . . . . Combat . | . . . . Robot Hacks Applied . | . . . . Relay Couplers Released . | . . . . Fabnet Peak Effective % . | . . . . Robots Rewired . | . . . . Allies Hacked . | . . . . Hacks Repelled . | . . . . Allies | -11 -10 -10 -10 -------- Run | Yrd Mat Min Sub Total Allies . | . . . . Largest Group . | . . . . Highest-Rated Group . | . . . . Highest-Rated Ally . | . . . . Total Orders . | . . . . Ally Attacks . | . . . . Total Damage . | . . . . Kills . | . . . . Allies Corrupted . | . . . . Allies Melted . | . . . . Intel | -11 -10 -10 -10 ------- Run | Yrd Mat Min Sub Active Infowar (turns) 1326 | 30 821 433 42 Terrain 5 | 5 . . . Seismic 83 | 25 58 . . T.N.C. 1238 | . 763 433 42 Robot Analysis Total 2 | . 2 . . Derelict Logs Recovered 1 | . . 1 . Drone Launches . | . . . . Drone Recoveries . | . . . . Exploration | -11 -10 -10 -10 ------------- Run | Yrd Mat Min Sub Turns Passed 1413 | 117 821 433 42 Spaces Moved 711 | 59 391 243 18 Core 8 | 8 . . . Treads 703 | 51 391 243 18 Legs . | . . . . Wheels . | . . . . Hover . | . . . . Flight . | . . . . Fastest Speed 50 | 50 160 160 160 Average Speed 158 | 146 160 160 160 Slowest Speed 160 | 160 160 160 160 Overloaded Moves . | . . . . Propulsion Burnouts . | . . . . Robots Hopped . | . . . . Potential Cave-ins . | . . . . Cave-ins Triggered . | . . . . Exploration Rate (%) 28 | 4 45 60 4 Regions Visited 3 Branch Regions 2 Pre-discovered Areas . | . . . . Known Exits Taken . | . . . . Unknown Exits Taken 3 | 1 1 1 . Scrap Searched 1 | . . 1 . Spaces Dug . | . . . . Terrain Destroyed . | . . . . Melee . | . . . . Projectile . | . . . . AOE . | . . . . Terrain Rammed . | . . . . Walls Destroyed . | . . . . Machines Disabled . | . . . . Actions | -11 -10 -10 -10 --------- Run | Yrd Mat Min Sub Total 852 | 79 486 264 23 Wait 20 | . 20 . . Move 708 | 58 390 242 18 Hop . | . . . . Pick Up 19 | 8 7 4 . Fast Attach 16 | 8 8 . . Attach 5 | . 2 3 . Detach . | . . . . Swap 1 | . 1 . . Drop 9 | 1 7 1 . Fire 72 | 4 50 13 5 Melee . | . . . . Ram . | . . . . Kick . | . . . . Crush 2 | . 1 1 . Escape Stasis . | . . . . Rewire . | . . . . Trap . | . . . . Miscellaneous . | . . . . Route ------- -11/Scrapyard -10/Materials (discovered 3 exits: [*Mat x2] / *Min) -10/Mines -10/Subcaves (discovered 1 exit: Rec) History --------- Turn | Location | Event 9 | -11/Scrapyard | Discovered new exit (range 16) 118 | -11/Scrapyard | Entered Materials 221 | -10/Materials | Discovered new exit (range 15) 312 | -10/Materials | Build established: Mutant 440 | -10/Materials | Discovered new exit (range 8) 914 | -10/Materials | Discovered new exit (range 16) 939 | -10/Materials | Entered Mines 1086 | -10/Mines | Found the Drone Emporium 1092 | -10/Mines | Found Prototype Device 1257 | -10/Mines | Core integrity fell below 50% 1305 | -10/Mines | Lost 4 parts (1p1n2w) 1340 | -10/Mines | YI-UF0 nonchalantly dropped a Grenade Launcher on the ground 1359 | -10/Mines | Discovered new exit (range 9) 1372 | -10/Mines | Entered Subcaves 1373 | -10/Subcaves | Identified exit to Recycling 1410 | -10/Subcaves | Core integrity fell below 20% 1414 | -10/Subcaves | Destroyed by X2-I50(R) with Subdweller Machine Gun Last Messages --------------- 01277_ S-10 Pest destroyed. 01282_ Acquired 18 matter. 01284_ Acquired 10 matter. 01285_ Acquired 4 matter. 01320_ Searching scrap... 01320_ Found Lrg. Matter Pod. 01320_ Found Targeting Computer. 01320_ Found Mining Claw. 01320_ Found 61 Matter. 01324_ Acquired Lrg. Matter Pod. 01325_ Acquired 61 matter. 01340_ YI-UF0 nonchalantly drops a Grenade Launcher on the ground. 01347_ Acquired Grenade Launcher. 01355_ YI-UF0 mumbles something. 01359_ EXIT=FOUND LOCATION=UNKNOWN AMBIENT_HEAT=-10 GOAL=ESCAPE Loading 1 Recycling entrance... Map ----- +----------------------------------------------------+ | ?????????????????????????????????????????????????? | | ?????????????????????????????????????????????????? | | ?????????????????????????????????????????????????? | | ?????????????????????????????????????????????????? | | ?????????????????????????????????????????????????? | | ?????????????????????????????????????????????????? | | ?????????????????????????????????????????????????? | | ?????????????????????????????????????????????????? | | ?????????????????????????????????????????????????? | | ?????????????????????????????????????????????????? | | ?????????????????????????????????????????????????? | | ???????#??????????####???????????????????????????? | | ?????? ??????## #?????#?????????????????????? | | ??????? ???# ##??? #???? #??????????????? | | ??????? ## ##?# ### #???????????????? | | ??????????? ## #????????????????? | | ??????????????????# #????????????????? | | ??????????????????## #???????????????? | | ??????????????????## ## ## #???????????????? | | ??????????????????# ###?? #???????????????? | | ??????????????????## ##????? #??????????????? | | ??????????????????## ##??????? ?????????????? | | ??????????????????# #?###???? ???????????? | | ??????????????????## ### #????? ???????????? | | ?????????????????### R #??????? ????????????? | | ?????????? R @ #???????? ????????????? | | ???????? ### ##?????????????????????? | | ??????????????## #??????????????????????? | | ???????????????# #??????????????????????? | | ????????????? #??????????????????????? | | ????????????## ??????????????????????? | | ?????????????# ?????????????????????? | | ?????????????# ?????????????????????? | | ????????????# ## ????????????????????? | | ????????????# %## ?## % ???????????????????? | | ????????????## #?# ??? ???????????????????? | | ??????????????%??# #??? % ???????????????????? | | ?????????????????####???? ???????????????????? | | ????????????????????????? % ????????????????????? | | ?????????????????????????##??????????????????????? | | ?????????????????????????????????????????????????? | | ?????????????????????????????????????????????????? | | ?????????????????????????????????????????????????? | | ?????????????????????????????????????????????????? | | ?????????????????????????????????????????????????? | | ?????????????????????????????????????????????????? | | ?????????????????????????????????????????????????? | | ?????????????????????????????????????????????????? | | ?????????????????????????????????????????????????? | | ?????????????????????????????????????????????????? | +----------------------------------------------------+ Best States ------------- Heat Dissipation 25 Energy Generation 10 Energy Capacity 250 Matter Stores 300 Matter Capacity 300 Sight Range 16 Terrain Scan Range 16 Terrain Scan Density 10 Evasion (%) 40 Recoil Reduction 2 Item Schematics ----------------- None Robot Schematics ------------------ None Fabricated ------------ Nothing Repaired ---------- Nothing Alien Tech Used ----------------- None Achievements -------------- None Challenges ------------ None Game ------ Seed SmartBarrageSystem Manual? 0 Play Time 00:09:43 Cumulative 26.8 hours Start 2025.08.17 @ 17:00:50 End 2025.08.17 @ 17:10:14 Sessions 1 Manual Loads 0 Difficulty Rogue Special Mode None Game No. 46 Rogue 46 Adventurer 0 Explorer 0 Win Type - Total 0 Types 0/0/0/0/0/0/0/0/0/0 Lore% 32 Gallery% 30 Achievement% 27 Wizard Run 0 Options --------- Layout 1 ASCII 0 Keyboard 0 Movement Numpad Keybinds 0 Fullscreen 1 Font 24/Smallcaps Map View 50x35 Zoom Use 0% Tactical HUD 1 Map Filters NONE Filters NONE Steam 1 RUN: f7b74804-a525-40cb-8cc3-c653cf433039